bitfinex/quotes_BTCUSD_20241203
["timestamp","ask_amount","ask_price","bid_price","bid_amount"]
[1733234395925,0.7946226,93965.0,93964.0,0.10471259]
[1733234399823,0.7946226,93965.0,93964.0,0.05471259]
[1733234400638,0.7940226,93965.0,93964.0,0.05471259]
[1733234401155,0.46287,93954.0,93953.0,0.000862]
[1733234401434,0.46287,93954.0,93953.0,0.10557459]
[1733234401435,1.10141,93954.0,93953.0,0.10557459]
[1733234401966,1.56251758,93954.0,93953.0,0.10557459]
[1733234402243,1.10141,93954.0,93953.0,0.10557459]
[1733234402899,1.10212769,93954.0,93953.0,0.10557459]
[1733234403120,1.10212769,93954.0,93953.0,0.000862]
[1733234403773,1.10212769,93954.0,93948.0,0.0019991]
[1733234403774,0.11441773,93949.0,93948.0,0.0019991]
[1733234403990,0.25,93943.0,93941.0,0.1406117]
[1733234404240,0.67659557,93942.0,93941.0,0.1406117]
[1733234404428,0.99658326,93942.0,93941.0,0.1406117]
[1733234404647,1.29081058,93942.0,93941.0,0.1406117]
[1733234404868,0.78368626,93942.0,93941.0,0.1406117]
[1733234409548,0.78368626,93942.0,93941.0,0.1406117]
[1733234409758,0.78368626,93942.0,93941.0,0.04728389]
[1733234410209,0.78368626,93942.0,93941.0,0.04900769]
[1733234410931,0.88839885,93942.0,93941.0,0.04900769]
[1733234411375,0.78368626,93942.0,93941.0,0.04900769]
[1733234412298,0.77708349,93942.0,93941.0,0.04900769]
[1733234412971,0.78813374,93942.0,93941.0,0.04900769]
[1733234413196,0.78741605,93942.0,93941.0,0.04900769]
[1733234413890,0.03751605,93942.0,93941.0,0.15372028]
[1733234414115,0.10753573,93950.0,93941.0,0.15372028]
[1733234414116,0.45998575,93960.0,93941.0,0.15372028]
[1733234414339,0.45998575,93960.0,93942.0,0.10471259]
[1733234414586,0.25,93943.0,93941.0,0.15430524]
[1733234414816,0.31935,93942.0,93941.0,0.15430524]
[1733234415513,0.6387,93942.0,93941.0,0.15430524]
[1733234415754,0.638,93942.0,93941.0,0.15430524]
[1733234417228,0.6362,93942.0,93941.0,0.04959265]
[1733234417685,0.6362,93942.0,93941.0,0.15430524]
[1733234418133,0.63478953,93942.0,93941.0,0.15430524]
[1733234418856,0.63478953,93942.0,93941.0,0.04959265]
[1733234419117,0.63478953,93942.0,93941.0,0.15430524]
[1733234419854,0.61613934,93942.0,93941.0,0.15430524]
[1733234420072,1.13652301,93993.0,93941.0,0.15430524]
[1733234420073,0.45998575,94003.0,93942.0,0.5498]
[1733234420300,0.19524022,93988.0,93965.0,0.10471259]
[1733234420522,0.45998575,94004.0,93965.0,0.10471259]
[1733234420523,0.19524022,93975.0,93965.0,0.10471259]
[1733234420751,0.31923,93974.0,93965.0,0.10471259]
[1733234421492,0.46002413,94003.0,93965.0,0.10471259]
[1733234421777,0.31925,93973.0,93971.0,0.10471259]
[1733234422011,0.31925,93973.0,93941.0,0.04900769]
[1733234422229,0.31925,93973.0,93945.0,0.10471259]
[1733234422719,0.31925,93973.0,93941.0,0.04900769]
[1733234422720,0.31925,93973.0,93947.0,0.10471259]
[1733234423167,0.0008619,93965.0,93947.0,0.00058496]
[1733234423390,0.0008619,93965.0,93955.0,0.10471259]
[1733234423391,0.31925,93964.0,93955.0,0.10471259]
[1733234423613,0.31925,93964.0,93963.0,0.10471259]
[1733234424122,0.63852,93964.0,93963.0,0.10471259]
[1733234425952,0.63852,93964.0,93947.0,0.00058496]
[1733234426177,0.63852,93964.0,93948.0,0.10471259]
[1733234426466,0.63852,93964.0,93963.0,0.01]
[1733234426907,1.69204301,93964.0,93963.0,0.01]
[1733234427603,0.63852,93964.0,93963.0,0.11471259]
[1733234428736,0.851367,93964.0,93963.0,0.11465482]
[1733234429709,0.851367,93964.0,93963.0,0.12465482]
[1733234430427,0.79241622,93964.0,93963.0,0.12465482]
[1733234431420,0.79241622,93964.0,93963.0,2.3e-07]
[1733234431690,0.212883,93948.0,93947.0,0.00058496]
[1733234431931,0.212883,93948.0,93947.0,3.02014155]
[1733234431932,0.47318222,93948.0,93947.0,3.02014155]
[1733234432192,0.47318222,93948.0,93947.0,2.978711]
[1733234432193,0.79245222,93948.0,93947.0,2.978711]
[1733234433177,0.79245222,93948.0,93947.0,3.08342359]
[1733234433893,0.57956922,93948.0,93947.0,3.08342359]
[1733234434143,0.212883,93948.0,93947.0,3.08342359]
[1733234434648,0.42575,93952.0,93947.0,3.08342359]
[1733234434885,0.212874,93952.0,93951.0,0.10471259]
[1733234435123,0.212869,93955.0,93951.0,0.10471259]
[1733234435422,0.212869,93955.0,93954.0,0.10471259]
[1733234435657,10.0,94000.0,93947.0,2.978711]
[1733234435658,0.12562481,93954.0,93949.0,0.23048]
[1733234435926,0.02846186,93954.0,93953.0,0.10471259]
[1733234436186,0.34777186,93954.0,93953.0,0.10471259]
[1733234439468,0.212883,93948.0,93947.0,2.978711]
[1733234439739,0.532193,93948.0,93947.0,3.08342359]
[1733234439996,0.56065486,93948.0,93947.0,3.08342359]
[1733234442098,0.17355315,93948.0,93947.0,3.08342359]
[1733234442337,9.0,93953.0,93947.0,3.63322359]
[1733234442338,8.54985315,93953.0,93947.0,3.63322359]
[1733234442591,8.54985315,93953.0,93952.0,0.10471259]
[1733234442857,8.53866025,93953.0,93952.0,0.65451259]
[1733234443086,8.85797025,93953.0,93952.0,0.65451259]
[1733234443340,8.84739672,93953.0,93952.0,0.65451259]
[1733234443556,3.85081193,93953.0,93952.0,0.65451259]
[1733234443771,0.78777074,93953.0,93952.0,0.61455259]
[1733234443988,0.001723,94012.0,93953.0,0.6619]
[1733234444202,0.001723,94012.0,93997.0,0.10471259]
[1733234444203,0.212772,93998.0,93997.0,0.10471259]
[1733234444472,0.212747,94009.0,93997.0,0.10471259]
[1733234444713,0.001723,94012.0,93999.0,0.10471259]
[1733234444984,0.212753,94006.0,93999.0,0.10471259]
[1733234445206,0.212765,94001.0,93999.0,0.10471259]
[1733234445428,10.31973532,94000.0,93999.0,0.10471259]
[1733234445881,10.63888532,94000.0,93999.0,0.10471259]
[1733234447974,10.03548532,94000.0,93999.0,0.10471259]
[1733234448198,10.03634742,94000.0,93999.0,0.10471259]
[1733234448433,10.03634742,94000.0,93999.0,0.33535259]
[1733234448434,10.00680458,94000.0,93999.0,0.33535259]
[1733234449606,9.66260619,94000.0,93999.0,0.33535259]
[1733234450525,9.66260619,94000.0,93999.0,0.10471259]
[1733234450776,9.63364858,94000.0,93999.0,0.33535259]
[1733234452707,9.63364858,94000.0,93999.0,0.10471259]
[1733234454604,9.63491367,94000.0,93999.0,0.10471259]
[1733234456916,9.63491367,94000.0,93999.0,0.42751259]
[1733234459754,9.63491367,94000.0,93999.0,0.65815259]
[1733234461117,9.57566864,94000.0,93999.0,0.65815259]
[1733234461593,9.54834983,94000.0,93999.0,0.77197499]
[1733234462085,9.54708474,94000.0,93999.0,0.77197499]
[1733234462546,9.54708474,94000.0,93999.0,0.78197499]
[1733234462818,9.53576728,94000.0,93999.0,0.78197499]
[1733234463076,9.52444982,94000.0,93999.0,0.78197499]
[1733234463529,9.52444982,94000.0,93999.0,0.66987499]
[1733234464005,9.5257544,94000.0,93999.0,0.66987499]
[1733234464748,9.5257544,94000.0,93999.0,0.55133499]
[1733234465154,9.52621228,94000.0,93999.0,0.55133499]
[1733234465382,9.52621228,94000.0,93999.0,0.78197499]
[1733234466065,9.52444982,94000.0,93999.0,0.78197499]
[1733234466292,9.29380982,94000.0,93999.0,0.55133499]
[1733234466528,9.29380982,94000.0,93999.0,1.10113499]
[1733234466766,9.27607914,94000.0,93999.0,1.10113499]
[1733234466990,9.24174951,94000.0,93999.0,1.10113499]
[1733234471391,9.21841246,94000.0,93999.0,1.10113499]
[1733234471616,9.20393127,94000.0,93999.0,1.10113499]
[1733234472856,9.18895448,94000.0,93999.0,1.10113499]
[1733234473576,9.13793949,94000.0,93999.0,1.10113499]
[1733234473816,8.54664214,94000.0,93999.0,1.10113499]
[1733234474286,7.89491542,94000.0,93999.0,1.10113499]
[1733234474520,7.55169608,94000.0,93999.0,0.9964224]
[1733234475923,7.55169608,94000.0,93999.0,0.4466224]
[1733234476371,7.55169608,94000.0,93999.0,0.55133499]
[1733234478918,7.54669608,94000.0,93999.0,0.55133499]
[1733234479623,7.54669608,94000.0,93999.0,1.10113499]
[1733234484540,7.54669608,94000.0,93999.0,0.55133499]
[1733234484774,7.54875955,94000.0,93999.0,0.55133499]
[1733234485472,7.54875955,94000.0,93999.0,0.43923499]
[1733234485704,7.54875955,94000.0,93999.0,0.36753826]
[1733234485705,7.74875955,94000.0,93999.0,0.36753826]
[1733234486161,7.54875955,94000.0,93999.0,0.36753826]
[1733234488116,7.54875955,94000.0,93999.0,0.47963826]
[1733234488639,0.04669608,94000.0,93999.0,0.47963826]
[1733234489818,0.36584608,94000.0,93999.0,0.47963826]
[1733234490265,0.36584608,94000.0,93999.0,1.02943826]
[1733234492968,0.34941158,94000.0,93999.0,1.02943826]
[1733234493179,0.34941158,94000.0,93999.0,0.99915797]
[1733234495184,0.34941158,94000.0,93999.0,1.04915797]
[1733234495617,0.32279623,94000.0,93999.0,1.04915797]
[1733234495835,0.25174084,94000.0,93999.0,1.04915797]
[1733234496055,0.001723,94012.0,94003.0,0.1121]
[1733234496295,0.001723,94012.0,93999.0,0.38725797]
[1733234496296,0.0017815,94012.0,94011.0,0.21681259]
[1733234497178,0.0017815,94012.0,94011.0,0.51487175]
[1733234497636,0.3208915,94012.0,94011.0,0.51487175]
[1733234497851,0.22862373,94012.0,94011.0,0.51487175]
[1733234498093,0.21170172,94012.0,94011.0,0.51487175]
[1733234498303,0.18907258,94012.0,94011.0,0.51487175]
[1733234498745,0.01109124,94041.0,94011.0,0.51487175]
[1733234498746,0.01109124,94041.0,94019.0,0.10898658]
[1733234498988,0.01109124,94041.0,94000.0,0.1121]
[1733234498989,0.09802342,94012.0,94000.0,0.1121]
[1733234499215,0.09802342,94012.0,94011.0,0.1121]
[1733234499470,0.09802342,94012.0,93999.0,0.28254538]
[1733234499471,0.10223741,94011.0,93999.0,0.28254538]
[1733234499689,0.09802342,94012.0,93999.0,0.28254538]
[1733234499690,0.09386083,94012.0,93999.0,0.28254538]
[1733234499898,0.09386083,94010.0,93999.0,0.28254538]
[1733234500134,0.09386083,94010.0,94000.0,0.1121]
[1733234500349,0.09386083,94010.0,94009.0,0.21681259]
[1733234501882,0.07366781,94010.0,94009.0,0.21681259]
[1733234502981,0.07366781,94010.0,94009.0,0.76661259]
[1733234504567,0.0008624,94042.0,94009.0,0.76661259]
[1733234504568,0.0008624,94042.0,94010.0,0.5498]
[1733234504788,0.0008624,94042.0,94041.0,0.10471259]
[1733234505013,0.3198724,94042.0,94041.0,0.10471259]
[1733234505460,0.3198724,94042.0,94041.0,0.65451259]
[1733234505683,0.00072278,94048.0,94041.0,0.32182655]
[1733234505914,0.00072278,94048.0,94047.0,0.10471259]
[1733234506141,0.00084152,94048.0,94047.0,0.10471259]
[1733234506358,0.31983152,94048.0,94047.0,0.10471259]
[1733234507709,0.30796277,94048.0,94047.0,0.10471259]
[1733234508149,0.30796277,94048.0,94047.0,0.21681259]
[1733234508390,0.24666804,94048.0,94047.0,0.43392655]
[1733234508602,0.12594723,94048.0,94047.0,0.64658555]
[1733234508820,0.01954723,94048.0,94047.0,0.68920755]
[1733234509035,0.0008624,94058.0,94047.0,0.47654855]
[1733234509259,0.0008624,94058.0,94057.0,0.10471259]
[1733234509470,0.005,94110.0,94068.0,0.21711396]
[1733234509705,0.005,94110.0,94057.0,0.06402]
[1733234509706,0.08115918,94058.0,94057.0,0.06402]
[1733234509924,0.005,94110.0,94057.0,0.06402]
[1733234509925,0.0017214,94095.0,94057.0,0.06402]
[1733234510138,0.06905823,94058.0,94051.0,0.212649]
[1733234510367,0.06905823,94058.0,94047.0,0.15489835]
[1733234510368,0.0017214,94095.0,94064.0,0.212619]
[1733234510589,0.0017214,94095.0,94059.0,0.06402]
[1733234510811,0.31888,94093.0,94059.0,0.06402]
[1733234511109,0.31888,94093.0,94092.0,0.10471259]
[1733234512494,0.31888,94093.0,94092.0,0.21698894]
[1733234513647,0.31861489,94093.0,94092.0,0.21698894]
[1733234514987,0.31861489,94093.0,94092.0,0.72788894]
[1733234516123,0.31861489,94093.0,94092.0,0.26698894]
[1733234516124,0.31857138,94093.0,94092.0,0.26698894]
[1733234516377,0.53112638,94093.0,94092.0,0.24458738]
[1733234516609,0.81002638,94093.0,94092.0,0.13248738]
[1733234516832,0.59747138,94093.0,94092.0,0.13248738]
[1733234517510,0.39747138,94093.0,94092.0,0.13248738]
[1733234517744,0.59747138,94093.0,94092.0,0.13248738]
[1733234517971,0.39747138,94093.0,94092.0,0.24458738]
[1733234518200,0.39693369,94093.0,94092.0,0.24458738]
[1733234518854,0.59693369,94093.0,94092.0,0.24458738]
[1733234519775,0.39693369,94093.0,94092.0,0.24458738]
[1733234520498,0.39779449,94093.0,94092.0,0.24458738]
[1733234520740,0.31889449,94093.0,94092.0,0.24458738]
[1733234520959,0.31389449,94093.0,94092.0,0.24458738]
[1733234521409,0.31389449,94093.0,94092.0,0.75548738]
[1733234522555,0.20749449,94093.0,94092.0,0.75548738]
[1733234523927,0.20749449,94093.0,94092.0,0.81950738]
[1733234524149,0.11818863,94093.0,94092.0,0.81950738]
[1733234524384,0.0017234,94107.0,94098.0,0.1121]
[1733234524606,0.0017234,94107.0,94104.0,0.21681259]
[1733234524839,0.0017234,94107.0,94104.0,0.28083259]
[1733234525096,0.3196512,94105.0,94104.0,0.28083259]
[1733234525323,0.1534438,94148.0,94122.0,0.0465562]
[1733234525555,0.1534438,94148.0,94147.0,0.10471259]
[1733234525779,0.1534438,94148.0,94147.0,0.21681259]
[1733234526259,0.1534438,94148.0,94147.0,0.10471259]
[1733234526260,0.48318504,94148.0,94147.0,0.10471259]
[1733234526722,0.33032935,94148.0,94147.0,0.21681259]
[1733234527440,0.31923811,94148.0,94147.0,0.21681259]
[1733234527911,0.47268191,94148.0,94147.0,0.21681259]
[1733234528357,0.31923811,94148.0,94147.0,0.21681259]
[1733234528588,0.47268191,94148.0,94147.0,0.21681259]
[1733234529292,0.51928191,94148.0,94147.0,0.08271377]
[1733234529530,0.51928191,94148.0,94124.0,0.01]
[1733234529531,0.1534438,94125.0,94124.0,0.01]
[1733234529754,0.59893377,94125.0,94124.0,0.01]
[1733234530881,0.15318377,94101.0,94094.0,0.0009827]
[1733234531110,0.44575,94125.0,94094.0,0.0009827]
[1733234531111,0.47183377,94100.0,94096.0,0.21681259]
[1733234531336,0.47183377,94100.0,94098.0,0.21681259]
[1733234531579,0.47183377,94100.0,94092.0,0.05]
[1733234531580,0.31865,94100.0,94099.0,0.21681259]
[1733234531805,0.47183377,94100.0,94099.0,0.21681259]
[1733234532262,0.47242152,94100.0,94099.0,0.21681259]
[1733234533403,0.31923775,94100.0,94099.0,0.21681259]
[1733234533649,0.47242152,94100.0,94099.0,0.21681259]
[1733234534586,0.31923775,94100.0,94099.0,0.21681259]
[1733234534810,0.51902152,94100.0,94099.0,0.21681259]
[1733234536944,0.36583775,94100.0,94099.0,0.21681259]
[1733234537177,0.51896141,94100.0,94099.0,0.21681259]
[1733234537405,0.47236141,94100.0,94099.0,0.21681259]
[1733234538115,0.31917764,94100.0,94099.0,0.21681259]
[1733234540009,0.31917764,94100.0,94099.0,0.26362882]
[1733234540266,0.27425326,94100.0,94099.0,0.61584882]
[1733234540487,0.0008604,94125.0,94108.0,0.04681623]
[1733234540707,0.0008604,94125.0,94124.0,0.21681259]
[1733234540962,0.0008604,94125.0,94124.0,0.18897518]
[1733234541193,0.0008604,94125.0,94124.0,0.34769141]
[1733234541461,0.3195904,94125.0,94124.0,0.30087518]
[1733234542195,0.3195904,94125.0,94124.0,0.29957518]
[1733234542419,0.3195904,94125.0,94124.0,0.34639141]
[1733234542633,0.3195904,94125.0,94124.0,0.29957518]
[1733234543068,0.33068164,94125.0,94124.0,0.29957518]
[1733234543522,0.33068164,94125.0,94124.0,0.34639141]
[1733234544213,0.33039421,94125.0,94124.0,0.34639141]
[1733234545163,0.33039421,94125.0,94124.0,0.55887641]
[1733234545389,0.28247203,94125.0,94124.0,0.26212882]
[1733234545619,0.23665564,94125.0,94124.0,0.26212882]
[1733234545847,0.2255644,94125.0,94124.0,0.21531259]
[1733234546542,0.2255644,94125.0,94124.0,0.29957518]
[1733234548571,0.2255644,94125.0,94124.0,0.34639141]
[1733234549275,0.12227417,94125.0,94124.0,0.34639141]
[1733234549487,0.09299373,94125.0,94124.0,0.41041141]
[1733234549754,0.08762775,94125.0,94124.0,0.41041141]
[1733234549986,0.0017236,94150.0,94149.0,0.15871623]
[1733234550214,0.0017236,94150.0,94149.0,0.43516523]
[1733234550689,0.3203636,94150.0,94149.0,0.53987782]
[1733234551388,0.3203636,94150.0,94149.0,0.54005417]
[1733234551607,0.3203636,94150.0,94149.0,0.32762517]
[1733234552093,0.3203636,94150.0,94149.0,0.26360517]
[1733234553787,0.3203636,94150.0,94149.0,0.47603417]
[1733234554021,0.3203636,94150.0,94149.0,0.26360517]
[1733234554243,0.3203636,94150.0,94149.0,0.47603417]
[1733234554724,0.29395137,94150.0,94149.0,0.47603417]
[1733234554967,0.0008612,94188.0,94181.0,0.40851959]
[1733234555193,0.0008612,94188.0,94181.0,0.19616259]
[1733234555644,0.3202528,94182.0,94181.0,0.19616259]
[1733234556091,0.3202528,94182.0,94181.0,0.30087518]
[1733234556322,0.3202528,94182.0,94181.0,0.30105153]
[1733234557513,0.31965104,94182.0,94181.0,0.30105153]
[1733234557731,0.31965104,94182.0,94181.0,0.34786776]
[1733234558210,0.31965104,94182.0,94181.0,0.30105153]
[1733234558670,0.31965104,94182.0,94181.0,0.34786776]
[1733234558924,0.31965104,94182.0,94181.0,0.30105153]
[1733234559650,0.44625104,94182.0,94181.0,0.10488894]
[1733234559881,0.39625104,94182.0,94181.0,0.10488894]
[1733234560149,0.54943481,94182.0,94181.0,0.10488894]
[1733234560650,0.54943481,94182.0,94181.0,0.21678894]
[1733234561841,0.26965104,94182.0,94181.0,0.21678894]
[1733234562065,0.26965104,94182.0,94181.0,0.49316594]
[1733234562317,0.26965104,94182.0,94181.0,0.62424476]
[1733234562318,0.26227776,94182.0,94181.0,0.62424476]
[1733234562546,0.21803813,94182.0,94181.0,0.62424476]
[1733234562782,0.02672037,94182.0,94181.0,0.62424476]
[1733234564637,0.01108971,94219.0,94181.0,0.62424476]
[1733234564638,0.01108971,94219.0,94212.0,0.08426259]
[1733234564856,0.0823,94224.0,94210.0,0.04681623]
[1733234565085,0.00081146,94220.0,94216.0,0.212278]
[1733234565288,0.00081146,94220.0,94218.0,0.212273]
[1733234565507,0.31841,94219.0,94218.0,0.378293]
[1733234565724,0.31841,94219.0,94218.0,0.27073259]
[1733234565954,0.31899848,94219.0,94218.0,0.27073259]
[1733234566452,0.31799717,94219.0,94218.0,0.27073259]
[1733234566936,0.31799717,94219.0,94218.0,0.20671259]
[1733234567215,0.31799717,94219.0,94218.0,0.25352882]
[1733234567937,0.31799717,94219.0,94218.0,0.36542882]
[1733234568228,0.31799717,94219.0,94218.0,0.42944882]
[1733234568443,0.21599717,94219.0,94218.0,0.32744882]
[1733234568709,0.20547262,94219.0,94218.0,0.32744882]
[1733234569236,0.18482029,94219.0,94218.0,0.32744882]
[1733234569491,0.16266597,94219.0,94218.0,0.57874582]
[1733234571364,0.0822,94259.0,94218.0,0.57874582]
[1733234571365,0.0997,94260.0,94231.0,0.04681623]
[1733234571602,0.0997,94260.0,94259.0,0.21661259]
[1733234571603,0.02662717,94260.0,94259.0,0.21661259]
[1733234571819,0.02662717,94260.0,94259.0,0.42879359]
[1733234572041,0.34489717,94260.0,94259.0,0.42879359]
[1733234572305,0.34489717,94260.0,94259.0,0.21661259]
[1733234573187,0.34489717,94260.0,94259.0,0.21678894]
[1733234573640,0.49808094,94260.0,94259.0,0.21678894]
[1733234573858,0.34489717,94260.0,94259.0,0.21678894]
[1733234574099,0.49808094,94260.0,94259.0,0.21678894]
[1733234576206,0.34489717,94260.0,94259.0,0.21678894]
[1733234577329,0.06336305,94260.0,94259.0,0.21678894]
[1733234577570,0.06336305,94260.0,94259.0,0.42896994]
[1733234577810,0.06336305,94260.0,94259.0,0.21678894]
[1733234579159,0.06336305,94260.0,94259.0,0.26360517]
[1733234579160,0.04158199,94260.0,94259.0,0.26360517]
[1733234579613,0.2,94308.0,94259.0,0.21678894]
[1733234579834,5.27746854,94449.0,94259.0,0.11207635]
[1733234579835,0.0008592,94260.0,94259.0,0.11207635]
[1733234580108,0.3190492,94260.0,94259.0,0.21678894]
[1733234582211,0.3190492,94260.0,94259.0,0.28080894]
[1733234582673,0.4011492,94260.0,94259.0,0.28080894]
[1733234582895,0.4011492,94260.0,94259.0,0.21678894]
[1733234583138,0.3190492,94260.0,94259.0,0.28080894]
[1733234583361,0.3678492,94260.0,94259.0,0.28080894]
[1733234583585,0.35623728,94260.0,94259.0,0.28080894]
[1733234584730,0.30743728,94260.0,94259.0,0.28080894]
[1733234585392,0.26496063,94260.0,94259.0,0.48080894]
[1733234585612,0.05156063,94260.0,94259.0,0.48080894]
[1733234585847,0.1255,94297.0,94261.0,0.2]
[1733234586070,0.1255,94297.0,94296.0,0.10471259]
[1733234586298,0.1255,94297.0,94261.0,0.2]
[1733234586299,0.21348741,94296.0,94278.0,0.212137]
[1733234586523,0.21348741,94296.0,94279.0,0.06402]
[1733234586992,0.21348741,94296.0,94274.0,0.212147]
[1733234587228,0.21348741,94296.0,94275.0,0.212145]
[1733234587445,0.21348741,94296.0,94295.0,0.10471259]
[1733234589559,0.21348741,94296.0,94295.0,0.21661259]
[1733234594712,0.21288741,94296.0,94295.0,0.21661259]
[1733234597253,0.21288741,94296.0,94279.0,0.251134]
[1733234597254,0.2,94289.0,94279.0,0.251134]
[1733234597470,0.2,94292.0,94279.0,0.251134]
[1733234597684,0.21288741,94288.0,94279.0,0.251134]
[1733234597911,0.21288741,94288.0,94280.0,0.10471259]
[1733234598791,0.2,94281.0,94280.0,0.10471259]
[1733234599005,0.21288741,94281.0,94280.0,0.10471259]
[1733234599468,0.21288741,94281.0,94280.0,0.09971259]
[1733234600629,0.11288741,94281.0,94280.0,0.09971259]
[1733234600860,0.11053953,94281.0,94280.0,0.09971259]
[1733234602191,0.11053953,94281.0,94280.0,0.21161259]
[1733234602936,0.31053953,94281.0,94280.0,0.1119]
[1733234604514,0.31053953,94281.0,94279.0,0.251134]
[1733234604515,0.32160385,94281.0,94279.0,0.251134]
[1733234604751,0.32160385,94281.0,94280.0,0.21661259]
[1733234607273,0.12160385,94281.0,94280.0,0.21661259]
[1733234607753,0.11053953,94281.0,94280.0,0.21661259]
[1733234608270,0.02091507,94281.0,94280.0,0.36213259]
[1733234609170,0.02064727,94281.0,94280.0,0.36213259]
[1733234609834,0.02064727,94281.0,94280.0,0.28063259]
[1733234613195,0.01161409,94281.0,94280.0,0.48063259]
[1733234613427,0.01161409,94281.0,94280.0,0.60273259]
[1733234614169,0.0008584,94314.0,94293.0,0.1119]
[1733234614455,0.0008584,94314.0,94313.0,0.10471259]
[1733234614685,0.03842581,94314.0,94313.0,0.21661259]
[1733234615217,0.03756741,94300.0,94280.0,0.001723]
[1733234615452,0.2,94303.0,94290.0,0.10471259]
[1733234615453,0.11416741,94299.0,94290.0,0.10471259]
[1733234615699,0.43225741,94299.0,94297.0,0.1119]
[1733234615924,0.35565741,94299.0,94298.0,0.21661259]
[1733234617116,0.31809,94299.0,94298.0,0.21661259]
[1733234617348,0.55565741,94299.0,94298.0,0.21661259]
[1733234617593,0.55565741,94299.0,94280.0,0.00272]
[1733234617594,0.03756741,94284.0,94280.0,0.11462]
[1733234617822,0.3978005,94299.0,94282.0,0.1119]
[1733234617823,0.03756741,94283.0,94282.0,0.1119]
[1733234618041,0.67886791,94283.0,94282.0,0.21661259]
[1733234618529,0.67886791,94283.0,94282.0,0.05781933]
[1733234619284,0.67886791,94283.0,94282.0,0.16270827]
[1733234619502,0.03756741,94260.0,94259.0,0.0027035]
[1733234619743,0.43126791,94260.0,94259.0,0.21949152]
[1733234619988,0.43126791,94260.0,94259.0,0.21850482]
[1733234621748,0.39351705,94260.0,94259.0,0.21850482]
[1733234622003,0.35536791,94260.0,94259.0,0.21850482]
[1733234622705,0.3178005,94260.0,94259.0,0.21850482]
[1733234622944,0.35536791,94260.0,94259.0,0.21850482]
[1733234624126,0.24849416,94260.0,94259.0,0.21850482]
[1733234625955,0.09806945,94260.0,94259.0,0.21850482]
[1733234626912,0.06050204,94260.0,94259.0,0.21850482]
[1733234627353,0.09806945,94260.0,94259.0,0.21850482]
[1733234627788,0.06050204,94260.0,94259.0,0.21850482]
[1733234628002,0.09806945,94260.0,94259.0,0.21850482]
[1733234628225,0.03743378,94277.0,94259.0,0.21850482]
[1733234628447,0.23743378,94277.0,94267.0,0.1119]
[1733234628674,0.23743378,94277.0,94269.0,0.1119]
[1733234628925,0.23743378,94277.0,94259.0,0.00189223]
[1733234628926,0.2,94267.0,94259.0,0.00189223]
[1733234629145,0.2,94260.0,94259.0,0.00189223]
[1733234629354,0.2,94260.0,94216.0,0.0017184]
[1733234629355,0.2,94250.0,94216.0,0.0017184]
[1733234629581,0.43526106,94243.0,94231.0,0.10471259]
[1733234629817,0.2,94238.0,94231.0,0.10150259]
[1733234630038,0.51822,94237.0,94232.0,0.1119]
[1733234630264,0.51822,94237.0,94234.0,0.1119]
[1733234630487,0.51822,94237.0,94236.0,0.1119]
[1733234630710,0.51822,94237.0,94236.0,0.21661259]
[1733234631381,0.49796502,94237.0,94236.0,0.21661259]
[1733234631597,0.73298028,94237.0,94236.0,0.21661259]
[1733234631814,0.49796502,94237.0,94236.0,0.21661259]
[1733234632459,0.7328888,94237.0,94236.0,0.21661259]
[1733234633327,0.49796502,94237.0,94236.0,0.21661259]
[1733234633833,0.44892,94237.0,94236.0,0.21661259]
[1733234634275,0.40122,94237.0,94236.0,0.21661259]
[1733234634938,0.31822,94237.0,94236.0,0.21661259]
[1733234638958,0.31822,94237.0,94236.0,0.21833599]
[1733234640077,0.1688252,94237.0,94236.0,0.21833599]
[1733234640968,0.1688252,94237.0,94236.0,0.28235599]
[1733234642840,0.1688252,94237.0,94236.0,0.21833599]
[1733234643061,0.34647022,94237.0,94236.0,0.21833599]
[1733234643534,0.54647022,94237.0,94236.0,0.11085589]
[1733234643755,0.54647022,94237.0,94186.0,0.15095498]
[1733234643756,0.12424502,94217.0,94187.0,0.1136228]
[1733234643984,0.29307022,94217.0,94216.0,0.21990977]
[1733234644201,0.29307022,94217.0,94216.0,0.21891947]
[1733234644425,0.53947022,94217.0,94216.0,0.00230688]
[1733234644875,0.33947022,94217.0,94194.0,0.1119]
[1733234645100,0.54005892,94217.0,94201.0,0.10471259]
[1733234645322,0.04904502,94202.0,94201.0,0.10471259]
[1733234645798,0.04904502,94202.0,94187.0,0.0017228]
[1733234645799,0.04904502,94201.0,94187.0,0.0017228]
[1733234646027,0.21787022,94201.0,94187.0,0.0017228]
[1733234646540,0.21787022,94201.0,94188.0,0.10471259]
[1733234646541,0.04834502,94189.0,94188.0,0.10471259]
[1733234646750,0.04834502,94189.0,94187.0,0.0017228]
[1733234646751,0.04834502,94188.0,94187.0,0.0017228]
[1733234646975,0.21717022,94188.0,94187.0,0.0017228]
[1733234647201,0.04834502,94186.0,94171.0,0.0009973]
[1733234647424,0.1688252,94188.0,94171.0,0.0009973]
[1733234647425,0.04834502,94172.0,94171.0,0.0009973]
[1733234647639,0.06662469,94186.0,94171.0,0.10570989]
[1733234647862,0.06662469,94172.0,94164.0,0.0017166]
[1733234648085,0.06662469,94172.0,94171.0,0.10471259]
[1733234648304,0.06662469,94172.0,94171.0,0.10477192]
[1733234649421,0.06662469,94172.0,94171.0,0.21667192]
[1733234650810,0.06662469,94172.0,94171.0,0.41667192]
[1733234651682,0.06662469,94172.0,94171.0,0.41839612]
[1733234652368,0.06662469,94172.0,94171.0,0.21839612]
[1733234653034,0.06662469,94172.0,94171.0,0.10649612]
[1733234654163,0.06662469,94172.0,94171.0,0.21839612]
[1733234656108,0.2,94200.0,94171.0,0.21839612]
[1733234656330,0.2,94200.0,94173.0,0.1119]
[1733234656595,0.2,94200.0,94175.0,0.1119]
[1733234656824,0.04228154,94201.0,94177.0,0.1119]
[1733234656825,0.31851,94199.0,94177.0,0.1119]
[1733234657096,0.31851,94199.0,94173.0,0.0009934]
[1733234657097,0.31851,94199.0,94179.0,0.1119]
[1733234657320,0.31851,94199.0,94181.0,0.1119]
[1733234657551,0.31851,94199.0,94171.0,0.00178353]
[1733234657552,0.31851,94199.0,94183.0,0.1119]
[1733234657779,0.31851,94199.0,94179.0,0.0009819]
[1733234657780,0.31851,94199.0,94185.0,0.1119]
[1733234658034,0.01108192,94198.0,94187.0,0.1119]
[1733234658245,0.01108192,94198.0,94189.0,0.1119]
[1733234658461,0.01108192,94198.0,94179.0,0.0009819]
[1733234658462,0.31851,94197.0,94191.0,0.1119]
[1733234658699,0.31851,94197.0,94193.0,0.1119]
[1733234658921,0.31851,94197.0,94195.0,0.1119]
[1733234659149,0.31851,94197.0,94196.0,0.21661259]
[1733234660116,0.31851,94197.0,94196.0,0.1119]
[1733234661002,0.31851,94197.0,94196.0,0.8619]
[1733234661475,0.44743726,94197.0,94196.0,0.8619]
[1733234661721,0.44743726,94197.0,94179.0,0.0009819]